[Event "Titled Tuesday Blitz March 21 Early 2023"]
[White "Topalov, Aleksandar"]
[Black "Harshavardhan G B"]
[WhiteFideId "925659"]
[BlackFideId "25059009"]
[WhiteElo "2151"]
[BlackElo "2323"]
[Result "1/2-1/2"]
[Round "01"]
[TimeControl "180+2"]
[Date "2023.03.21"]
[WhiteClock "0:00:09"]
[BlackClock "0:00:05"]

1. b3 {[%clk 0:03:00]}  d5 {[%clk 0:02:57]} 2. Bb2 {[%clk 0:02:59]}  Nf6 {[%clk 0:02:53]} 3. Nf3 {[%clk 0:02:58]}  Bf5 {[%clk 0:02:51]} 4. g3 {[%clk 0:02:58]}  e6 {[%clk 0:02:48]} 5. Bg2 {[%clk 0:02:58]}  Nbd7 {[%clk 0:02:47]} 6. O-O {[%clk 0:02:58]}  Be7 {[%clk 0:02:44]} 7. d3 {[%clk 0:02:55]}  h6 {[%clk 0:02:44]} 8. Nbd2 {[%clk 0:02:54]}  O-O {[%clk 0:02:42]} 9. c4 {[%clk 0:02:54]}  c6 {[%clk 0:02:42]} 10. a3 {[%clk 0:02:53]}  Bh7 {[%clk 0:02:41]} 11. b4 {[%clk 0:02:50]}  a5 {[%clk 0:02:40]} 12. Qb3 {[%clk 0:02:48]}  Qc7 {[%clk 0:02:36]} 13. Rfc1 {[%clk 0:02:46]}  Rfc8 {[%clk 0:02:21]} 14. cxd5 {[%clk 0:02:39]}  exd5 {[%clk 0:02:20]} 15. Nd4 {[%clk 0:02:26]}  Qd8 {[%clk 0:02:18]} 16. Bh3 {[%clk 0:02:22]}  axb4 {[%clk 0:02:07]} 17. axb4 {[%clk 0:02:21]}  Qb6 {[%clk 0:02:06]} 18. b5 {[%clk 0:01:49]}  c5 {[%clk 0:02:05]} 19. Nf5 {[%clk 0:01:47]}  Bf8 {[%clk 0:02:00]} 20. Ne3 {[%clk 0:01:40]}  Rxa1 {[%clk 0:01:02]} 21. Rxa1 {[%clk 0:01:32]}  d4 {[%clk 0:00:40]} 22. Nec4 {[%clk 0:01:30]}  Qc7 {[%clk 0:00:37]} 23. b6 {[%clk 0:01:28]}  Qd8 {[%clk 0:00:31]} 24. Ra7 {[%clk 0:01:22]}  Rb8 {[%clk 0:00:31]} 25. Bg2 {[%clk 0:01:20]}  Qe7 {[%clk 0:00:15]} 26. Bf3 {[%clk 0:00:44]}  Ne5 {[%clk 0:00:14]} 27. Nxe5 {[%clk 0:00:43]}  Qxe5 {[%clk 0:00:15]} 28. Nc4 {[%clk 0:00:42]}  Qe7 {[%clk 0:00:15]} 29. Qc2 {[%clk 0:00:29]}  Bf5 {[%clk 0:00:14]} 30. Na5 {[%clk 0:00:26]}  Qe6 {[%clk 0:00:11]} 31. Qb3 {[%clk 0:00:20]}  Qxb3 {[%clk 0:00:10]} 32. Nxb3 {[%clk 0:00:20]}  Nd7 {[%clk 0:00:11]} 33. Rxb7 {[%clk 0:00:16]}  Rxb7 {[%clk 0:00:11]} 34. Bxb7 {[%clk 0:00:16]}  Nxb6 {[%clk 0:00:12]} 35. Na5 {[%clk 0:00:16]}  Be6 {[%clk 0:00:11]} 36. Ba6 {[%clk 0:00:14]}  Nd5 {[%clk 0:00:10]} 37. Bc4 {[%clk 0:00:10]}  Nb6 {[%clk 0:00:10]} 38. Bxe6 {[%clk 0:00:10]}  fxe6 {[%clk 0:00:11]} 39. Bc1 {[%clk 0:00:09]}  e5 {[%clk 0:00:10]} 40. Kg2 {[%clk 0:00:08]}  Kf7 {[%clk 0:00:10]} 41. Kf3 {[%clk 0:00:08]}  Ke6 {[%clk 0:00:10]} 42. Ke4 {[%clk 0:00:09]}  Nd5 {[%clk 0:00:10]} 43. Bd2 {[%clk 0:00:08]}  g5 {[%clk 0:00:10]} 44. Kf3 {[%clk 0:00:07]}  Be7 {[%clk 0:00:09]} 45. Nc4 {[%clk 0:00:07]}  h5 {[%clk 0:00:09]} 46. h3 {[%clk 0:00:07]}  Bd8 {[%clk 0:00:08]} 47. g4 {[%clk 0:00:07]}  hxg4+ {[%clk 0:00:08]} 48. hxg4 {[%clk 0:00:08]}  Kf6 {[%clk 0:00:07]} 49. Ke4 {[%clk 0:00:07]}  Ke6 {[%clk 0:00:07]} 50. Kf3 {[%clk 0:00:07]}  Be7 {[%clk 0:00:05]} 51. Kg3 {[%clk 0:00:08]}  Bf6 {[%clk 0:00:04]} 52. Kf3 {[%clk 0:00:08]}  Bd8 {[%clk 0:00:05]} 53. Kg3 {[%clk 0:00:08]}  Nf4 {[%clk 0:00:05]} 54. Bxf4 {[%clk 0:00:08]}  exf4+ {[%clk 0:00:05]} 55. Kf3 {[%clk 0:00:08]}  Kd5 {[%clk 0:00:06]} 56. Nd2 {[%clk 0:00:08]}  Be7 {[%clk 0:00:06]} 57. Nc4 {[%clk 0:00:08]}  Bf6 {[%clk 0:00:06]} 58. Nd2 {[%clk 0:00:08]}  Bd8 {[%clk 0:00:06]} 59. Nc4 {[%clk 0:00:09]}  Be7 {[%clk 0:00:06]} 60. Nd2 {[%clk 0:00:09]}  Bd6 {[%clk 0:00:07]} 61. Ne4 {[%clk 0:00:09]}  Be7 {[%clk 0:00:07]} 62. Nd2 {[%clk 0:00:09]}  Bf6 {[%clk 0:00:06]} 63. Nc4 {[%clk 0:00:09]}  Bd8 {[%clk 0:00:07]} 64. Nd2 {[%clk 0:00:10]}  Kc6 {[%clk 0:00:06]} 65. Nc4 {[%clk 0:00:09]}  Kb5 {[%clk 0:00:06]} 66. Ke4 {[%clk 0:00:10]}  Kb4 {[%clk 0:00:07]} 67. e3 {[%clk 0:00:09]}  fxe3 {[%clk 0:00:06]} 68. fxe3 {[%clk 0:00:10]}  dxe3 {[%clk 0:00:06]} 69. Kxe3 {[%clk 0:00:10]}  Kc3 {[%clk 0:00:07]} 70. Ke4 {[%clk 0:00:11]}  Bc7 {[%clk 0:00:06]} 71. Ne3 {[%clk 0:00:10]}  Bh2 {[%clk 0:00:05]} 72. Nd5+ {[%clk 0:00:10]}  Kd2 {[%clk 0:00:05]} 73. Nf6 {[%clk 0:00:10]}  Ke2 {[%clk 0:00:05]} 74. Nh5 {[%clk 0:00:10]}  Kf2 {[%clk 0:00:04]} 75. Nf6 {[%clk 0:00:10]}  Bc7 {[%clk 0:00:02]} 76. Nh7 {[%clk 0:00:09]}  Bf4 {[%clk 0:00:02]} 77. Nf8 {[%clk 0:00:10]}  Kg3 {[%clk 0:00:02]} 78. Kf5 {[%clk 0:00:08]}  Kf3 {[%clk 0:00:03]} 79. Ne6 {[%clk 0:00:08]}  Ke3 {[%clk 0:00:03]} 80. Nxg5 {[%clk 0:00:08]}  Bxg5 {[%clk 0:00:02]} 81. Kxg5 {[%clk 0:00:08]}  Kxd3 {[%clk 0:00:03]} 82. Kf5 {[%clk 0:00:08]}  c4 {[%clk 0:00:04]} 83. g5 {[%clk 0:00:08]}  c3 {[%clk 0:00:05]} 84. g6 {[%clk 0:00:09]}  c2 {[%clk 0:00:06]} 85. g7 {[%clk 0:00:10]}  c1=Q {[%clk 0:00:07]} 86. g8=Q {[%clk 0:00:10]}  Qf1+ {[%clk 0:00:07]} 87. Kg6 {[%clk 0:00:10]}  Qg2+ {[%clk 0:00:07]} 88. Kf7 {[%clk 0:00:11]}  Qd5+ {[%clk 0:00:07]} 89. Kf8 {[%clk 0:00:11]}  Qd8+ {[%clk 0:00:07]} 90. Kg7 {[%clk 0:00:12]}  Qg5+ {[%clk 0:00:07]} 91. Kf8 {[%clk 0:00:12]}  Qc5+ {[%clk 0:00:07]} 92. Kg7 {[%clk 0:00:12]}  Qe5+ {[%clk 0:00:06]} 93. Kf8 {[%clk 0:00:12]}  Qd6+ {[%clk 0:00:07]} 94. Kf7 {[%clk 0:00:12]}  Kc4 {[%clk 0:00:06]} 95. Kg7+ {[%clk 0:00:12]}  Kd4 {[%clk 0:00:06]} 96. Qf7 {[%clk 0:00:12]}  Ke5 {[%clk 0:00:05]} 97. Qg6 {[%clk 0:00:11]}  Qe7+ {[%clk 0:00:05]} 98. Qf7 {[%clk 0:00:11]}  Qd8 {[%clk 0:00:06]} 99. Qg6 {[%clk 0:00:08]}  Qd7+ {[%clk 0:00:06]} 100. Kh6 {[%clk 0:00:08]}  Qh3+ {[%clk 0:00:06]} 101. Kg7 {[%clk 0:00:09]}  Qd7+ {[%clk 0:00:06]} 102. Kh6 {[%clk 0:00:09]}  Qd1 {[%clk 0:00:04]} 103. Qg5+ {[%clk 0:00:09]}  Ke6 {[%clk 0:00:03]} 104. Qg6+ {[%clk 0:00:08]}  Ke7 {[%clk 0:00:04]} 105. Qg7+ {[%clk 0:00:09]}  Ke6 {[%clk 0:00:04]} 106. Qg8+ {[%clk 0:00:09]}  Kf6 {[%clk 0:00:04]} 107. Qf8+ {[%clk 0:00:09]}  Ke6 {[%clk 0:00:04]} 108. Qe8+ {[%clk 0:00:09]}  Kf6 {[%clk 0:00:04]} 109. Qf8+ {[%clk 0:00:09]}  Ke6 {[%clk 0:00:05]} 110. Qe8+ {[%clk 0:00:10]}  Kf6 {[%clk 0:00:05]} 111. Qf8+ {[%clk 0:00:09]} 1/2-1/2


[Site "https://www.chess.com"]

[Event "Titled Tuesday Blitz March 21 Early 2023"]
[White "Molina, Roberto Junio Brito"]
[Black "Szyszylo, Rafal"]
[WhiteFideId "2109450"]
[BlackFideId "1109626"]
[WhiteElo "2376"]
[BlackElo "1951"]
[Result "1-0"]
[Round "01"]
[TimeControl "180+2"]
[Date "2023.03.21"]
[WhiteClock "0:00:17"]
[BlackClock "0:00:02"]

1. d4 {[%clk 0:02:58]}  g6 {[%clk 0:03:00]} 2. e4 {[%clk 0:02:58]}  d6 {[%clk 0:03:00]} 3. Nc3 {[%clk 0:02:58]}  Nf6 {[%clk 0:03:01]} 4. Be3 {[%clk 0:02:56]}  c6 {[%clk 0:03:01]} 5. Qd2 {[%clk 0:02:55]}  b5 {[%clk 0:03:00]} 6. f3 {[%clk 0:02:55]}  Nbd7 {[%clk 0:03:00]} 7. Nge2 {[%clk 0:02:51]}  Nb6 {[%clk 0:03:00]} 8. Nc1 {[%clk 0:02:49]}  Bb7 {[%clk 0:03:00]} 9. Bd3 {[%clk 0:02:46]}  a6 {[%clk 0:03:00]} 10. O-O {[%clk 0:02:40]}  Bg7 {[%clk 0:02:59]} 11. a4 {[%clk 0:02:39]}  b4 {[%clk 0:02:51]} 12. N3e2 {[%clk 0:02:38]}  a5 {[%clk 0:02:51]} 13. c3 {[%clk 0:02:37]}  bxc3 {[%clk 0:02:45]} 14. bxc3 {[%clk 0:02:38]}  Ba6 {[%clk 0:02:40]} 15. Bxa6 {[%clk 0:02:37]}  Rxa6 {[%clk 0:02:41]} 16. Qd3 {[%clk 0:02:36]}  Ra8 {[%clk 0:02:29]} 17. Nb3 {[%clk 0:02:36]}  O-O {[%clk 0:02:26]} 18. Rfb1 {[%clk 0:02:35]}  Qc7 {[%clk 0:02:19]} 19. Nd2 {[%clk 0:02:28]}  Nfd7 {[%clk 0:02:06]} 20. Bh6 {[%clk 0:02:22]}  c5 {[%clk 0:02:03]} 21. Bxg7 {[%clk 0:02:03]}  Kxg7 {[%clk 0:02:04]} 22. d5 {[%clk 0:01:58]}  c4 {[%clk 0:01:43]} 23. Qc2 {[%clk 0:01:46]}  Qc5+ {[%clk 0:01:31]} 24. Nd4 {[%clk 0:01:43]}  Qc7 {[%clk 0:01:06]} 25. Nf1 {[%clk 0:01:32]}  Nc5 {[%clk 0:00:59]} 26. Ne3 {[%clk 0:01:31]}  Kg8 {[%clk 0:00:42]} 27. Kh1 {[%clk 0:01:26]}  e5 {[%clk 0:00:39]} 28. dxe6 {[%clk 0:01:16]}  fxe6 {[%clk 0:00:36]} 29. Rd1 {[%clk 0:01:04]}  Nd3 {[%clk 0:00:28]} 30. Nxc4 {[%clk 0:00:55]}  Nxc4 {[%clk 0:00:25]} 31. Rxd3 {[%clk 0:00:53]}  Rfe8 {[%clk 0:00:15]} 32. Nb5 {[%clk 0:00:48]}  Qc6 {[%clk 0:00:15]} 33. Rad1 {[%clk 0:00:43]}  Rad8 {[%clk 0:00:14]} 34. h3 {[%clk 0:00:39]}  d5 {[%clk 0:00:14]} 35. exd5 {[%clk 0:00:38]}  Rxd5 {[%clk 0:00:15]} 36. Qe2 {[%clk 0:00:34]}  Rxd3 {[%clk 0:00:14]} 37. Rxd3 {[%clk 0:00:30]}  Qc5 {[%clk 0:00:11]} 38. Rd4 {[%clk 0:00:30]}  Nb6 {[%clk 0:00:09]} 39. Qd3 {[%clk 0:00:28]}  Nxa4 {[%clk 0:00:08]} 40. Rxa4 {[%clk 0:00:26]}  Qf2 {[%clk 0:00:05]} 41. Ra1 {[%clk 0:00:23]}  e5 {[%clk 0:00:03]} 42. Nd6 {[%clk 0:00:22]}  Re7 {[%clk 0:00:03]} 43. Ne4 {[%clk 0:00:20]}  Qb6 {[%clk 0:00:03]} 44. Qd5+ {[%clk 0:00:17]}  Kg7 {[%clk 0:00:02]} 45. Qxa5 {[%clk 0:00:18]}  Qe3 {[%clk 0:00:02]} 46. Qc5 {[%clk 0:00:17]}  Rf7 {[%clk 0:00:02]} 47. Qxe3 {[%clk 0:00:17]} 1-0


[Site "https://www.chess.com"]

[Event "Titled Tuesday Blitz March 21 Early 2023"]
[White "Samunenkov, Ihor"]
[Black "Peatman, Carter"]
[WhiteFideId "14187086"]
[BlackFideId "2096480"]
[WhiteElo "2457"]
[BlackElo "2003"]
[Result "1-0"]
[Round "01"]
[TimeControl "180+2"]
[Date "2023.03.21"]
[WhiteClock "0:00:10"]
[BlackClock "0:00:13"]

1. e4 {[%clk 0:02:59]}  e5 {[%clk 0:02:59]} 2. Nf3 {[%clk 0:02:59]}  Nf6 {[%clk 0:02:59]} 3. Nxe5 {[%clk 0:02:58]}  d6 {[%clk 0:02:59]} 4. Nf3 {[%clk 0:02:58]}  Nxe4 {[%clk 0:02:59]} 5. Nc3 {[%clk 0:02:59]}  Nxc3 {[%clk 0:02:58]} 6. dxc3 {[%clk 0:03:00]}  Be7 {[%clk 0:02:55]} 7. Be3 {[%clk 0:03:00]}  Nc6 {[%clk 0:02:55]} 8. Qd2 {[%clk 0:02:58]}  Be6 {[%clk 0:02:54]} 9. O-O-O {[%clk 0:02:54]}  Qd7 {[%clk 0:02:49]} 10. Bb5 {[%clk 0:02:40]}  a6 {[%clk 0:02:36]} 11. Ba4 {[%clk 0:02:17]}  b5 {[%clk 0:02:36]} 12. Bb3 {[%clk 0:02:18]}  Na5 {[%clk 0:02:34]} 13. Bxe6 {[%clk 0:01:39]}  fxe6 {[%clk 0:02:28]} 14. b3 {[%clk 0:01:38]}  Bf6 {[%clk 0:02:10]} 15. Bd4 {[%clk 0:01:29]}  O-O {[%clk 0:02:09]} 16. Rhe1 {[%clk 0:01:17]}  e5 {[%clk 0:02:01]} 17. Bxe5 {[%clk 0:01:13]}  Kh8 {[%clk 0:01:36]} 18. Qd5 {[%clk 0:00:44]}  Rab8 {[%clk 0:01:19]} 19. Bxf6 {[%clk 0:00:28]}  Rxf6 {[%clk 0:01:20]} 20. Re3 {[%clk 0:00:27]}  c6 {[%clk 0:01:10]} 21. Qd4 {[%clk 0:00:25]}  d5 {[%clk 0:01:04]} 22. Rde1 {[%clk 0:00:25]}  Rbf8 {[%clk 0:01:02]} 23. Qb6 {[%clk 0:00:18]}  Nc4 {[%clk 0:00:45]} 24. bxc4 {[%clk 0:00:18]}  bxc4 {[%clk 0:00:46]} 25. Qc5 {[%clk 0:00:12]}  Qc7 {[%clk 0:00:37]} 26. Re5 {[%clk 0:00:08]}  h6 {[%clk 0:00:31]} 27. h4 {[%clk 0:00:07]}  Qb7 {[%clk 0:00:23]} 28. Re8 {[%clk 0:00:07]}  Kg8 {[%clk 0:00:20]} 29. Rxf8+ {[%clk 0:00:06]}  Rxf8 {[%clk 0:00:21]} 30. Re7 {[%clk 0:00:07]}  Qb8 {[%clk 0:00:18]} 31. Qd4 {[%clk 0:00:06]}  Rf7 {[%clk 0:00:15]} 32. Rxf7 {[%clk 0:00:07]}  Kxf7 {[%clk 0:00:15]} 33. Ne5+ {[%clk 0:00:08]}  Kg8 {[%clk 0:00:16]} 34. Nxc6 {[%clk 0:00:09]}  Qd6 {[%clk 0:00:14]} 35. Qxd5+ {[%clk 0:00:09]}  Qxd5 {[%clk 0:00:13]} 36. Ne7+ {[%clk 0:00:09]}  Kf7 {[%clk 0:00:13]} 37. Nxd5 {[%clk 0:00:10]} 1-0


[Site "https://www.chess.com"]

[Event "Titled Tuesday Blitz March 21 Early 2023"]
[White "Hambleton, Aman"]
[Black "Harriott, Tyrell"]
[WhiteFideId "2606577"]
[BlackFideId "2086484"]
[WhiteElo "2511"]
[BlackElo "2107"]
[Result "0-1"]
[Round "01"]
[TimeControl "180+2"]
[Date "2023.03.21"]
[WhiteClock "0:00:01"]
[BlackClock "0:00:22"]

1. d4 {[%clk 0:03:00]}  e6 {[%clk 0:02:58]} 2. Bf4 {[%clk 0:02:59]}  d5 {[%clk 0:02:54]} 3. e3 {[%clk 0:02:58]}  Bd6 {[%clk 0:02:51]} 4. Nf3 {[%clk 0:02:57]}  Ne7 {[%clk 0:02:51]} 5. Nbd2 {[%clk 0:02:57]}  Ng6 {[%clk 0:02:50]} 6. Bg3 {[%clk 0:02:44]}  O-O {[%clk 0:02:48]} 7. Bd3 {[%clk 0:02:28]}  f5 {[%clk 0:02:45]} 8. c4 {[%clk 0:02:12]}  f4 {[%clk 0:02:44]} 9. exf4 {[%clk 0:01:56]}  Nxf4 {[%clk 0:02:44]} 10. Bxf4 {[%clk 0:01:53]}  Bxf4 {[%clk 0:02:44]} 11. O-O {[%clk 0:01:42]}  c6 {[%clk 0:02:43]} 12. Qc2 {[%clk 0:01:31]}  h6 {[%clk 0:02:34]} 13. g3 {[%clk 0:01:08]}  Bxd2 {[%clk 0:02:33]} 14. Nxd2 {[%clk 0:01:09]}  Qf6 {[%clk 0:02:32]} 15. Qc3 {[%clk 0:00:51]}  Nd7 {[%clk 0:02:27]} 16. Rae1 {[%clk 0:00:45]}  Nb6 {[%clk 0:02:22]} 17. c5 {[%clk 0:00:32]}  Nd7 {[%clk 0:02:20]} 18. f4 {[%clk 0:00:32]}  Re8 {[%clk 0:02:19]} 19. Nf3 {[%clk 0:00:27]}  Re7 {[%clk 0:02:17]} 20. Qc2 {[%clk 0:00:16]}  Nf8 {[%clk 0:02:14]} 21. b4 {[%clk 0:00:14]}  Bd7 {[%clk 0:02:13]} 22. Ne5 {[%clk 0:00:14]}  Be8 {[%clk 0:02:12]} 23. Rf2 {[%clk 0:00:12]}  Nd7 {[%clk 0:02:10]} 24. a4 {[%clk 0:00:07]}  Bh5 {[%clk 0:02:07]} 25. b5 {[%clk 0:00:06]}  Rc8 {[%clk 0:02:04]} 26. a5 {[%clk 0:00:01]}  cxb5 {[%clk 0:02:00]} 27. Bxb5 {[%clk 0:00:02]}  Nf8 {[%clk 0:02:00]} 28. Qb2 {[%clk 0:00:02]}  Rcc7 {[%clk 0:01:59]} 29. Bd3 {[%clk 0:00:03]}  Ng6 {[%clk 0:01:53]} 30. Qc2 {[%clk 0:00:02]}  Nf8 {[%clk 0:01:51]} 31. h4 {[%clk 0:00:02]}  b6 {[%clk 0:01:48]} 32. axb6 {[%clk 0:00:02]}  axb6 {[%clk 0:01:49]} 33. c6 {[%clk 0:00:03]}  Be8 {[%clk 0:01:45]} 34. Rc1 {[%clk 0:00:03]}  Ra7 {[%clk 0:01:42]} 35. Kg2 {[%clk 0:00:03]}  Rec7 {[%clk 0:01:41]} 36. Qb3 {[%clk 0:00:04]}  Qe7 {[%clk 0:01:40]} 37. Qxb6 {[%clk 0:00:04]}  Qa3 {[%clk 0:01:38]} 38. Qc5 {[%clk 0:00:04]}  Qa4 {[%clk 0:01:29]} 39. Rcc2 {[%clk 0:00:03]}  Qa1 {[%clk 0:01:29]} 40. Rc1 {[%clk 0:00:03]}  Qa4 {[%clk 0:01:26]} 41. Rfc2 {[%clk 0:00:03]}  Ra5 {[%clk 0:01:26]} 42. Qc3 {[%clk 0:00:03]}  Ra8 {[%clk 0:01:07]} 43. Rb2 {[%clk 0:00:03]}  Qa7 {[%clk 0:01:05]} 44. Qc5 {[%clk 0:00:03]}  Qa3 {[%clk 0:01:04]} 45. Qxa3 {[%clk 0:00:03]}  Rxa3 {[%clk 0:01:05]} 46. Rb8 {[%clk 0:00:02]}  Ra2+ {[%clk 0:00:46]} 47. Rc2 {[%clk 0:00:02]}  Rxc2+ {[%clk 0:00:45]} 48. Bxc2 {[%clk 0:00:03]}  Bxc6 {[%clk 0:00:42]} 49. Ng6 {[%clk 0:00:03]}  Be8 {[%clk 0:00:36]} 50. Rxe8 {[%clk 0:00:03]}  Rxc2+ {[%clk 0:00:35]} 51. Kf3 {[%clk 0:00:03]}  Kf7 {[%clk 0:00:34]} 52. Rxf8+ {[%clk 0:00:04]}  Kxg6 {[%clk 0:00:34]} 53. g4 {[%clk 0:00:02]}  Rc3+ {[%clk 0:00:34]} 54. Kf2 {[%clk 0:00:02]}  h5 {[%clk 0:00:34]} 55. g5 {[%clk 0:00:02]}  Rh3 {[%clk 0:00:32]} 56. Kg2 {[%clk 0:00:02]}  Rd3 {[%clk 0:00:32]} 57. Re8 {[%clk 0:00:02]}  Kf5 {[%clk 0:00:31]} 58. Re7 {[%clk 0:00:02]}  g6 {[%clk 0:00:30]} 59. Rf7+ {[%clk 0:00:02]}  Kg4 {[%clk 0:00:30]} 60. Rf6 {[%clk 0:00:03]}  Rd2+ {[%clk 0:00:29]} 61. Kf1 {[%clk 0:00:03]}  Rxd4 {[%clk 0:00:29]} 62. Rxg6 {[%clk 0:00:01]}  Rxf4+ {[%clk 0:00:28]} 63. Kg2 {[%clk 0:00:01]}  Re4 {[%clk 0:00:22]} 0-1


[Site "https://www.chess.com"]

[Event "Titled Tuesday Blitz March 21 Early 2023"]
[White "ArtemDyachuk"]
[Black "Volkov, Sergey"]
[BlackFideId "4122763"]
[WhiteElo "2383"]
[BlackElo "2401"]
[Result "0-1"]
[Round "01"]
[TimeControl "180+2"]
[Date "2023.03.21"]
[WhiteClock "0:00:01"]
[BlackClock "0:00:45"]

1. Nf3 {[%clk 0:02:50]}  d5 {[%clk 0:02:58]} 2. e3 {[%clk 0:02:46]}  Nf6 {[%clk 0:02:56]} 3. c4 {[%clk 0:02:46]}  c6 {[%clk 0:02:55]} 4. b3 {[%clk 0:02:46]}  Bf5 {[%clk 0:02:54]} 5. Bb2 {[%clk 0:02:45]}  e6 {[%clk 0:02:54]} 6. Nh4 {[%clk 0:02:42]}  Bxb1 {[%clk 0:02:50]} 7. Qxb1 {[%clk 0:02:43]}  Nbd7 {[%clk 0:02:45]} 8. Nf3 {[%clk 0:02:42]}  Bd6 {[%clk 0:02:43]} 9. Be2 {[%clk 0:02:33]}  e5 {[%clk 0:02:41]} 10. Qf5 {[%clk 0:02:29]}  Qe7 {[%clk 0:02:39]} 11. O-O {[%clk 0:02:26]}  g6 {[%clk 0:02:38]} 12. Qh3 {[%clk 0:02:25]}  h5 {[%clk 0:02:30]} 13. cxd5 {[%clk 0:01:46]}  cxd5 {[%clk 0:02:29]} 14. d4 {[%clk 0:01:46]}  e4 {[%clk 0:02:24]} 15. Nd2 {[%clk 0:01:32]}  O-O {[%clk 0:02:13]} 16. Nb1 {[%clk 0:01:14]}  a6 {[%clk 0:02:06]} 17. a3 {[%clk 0:01:12]}  Rac8 {[%clk 0:02:02]} 18. Nc3 {[%clk 0:01:11]}  Rc6 {[%clk 0:02:00]} 19. Rfc1 {[%clk 0:01:04]}  Rfc8 {[%clk 0:01:59]} 20. b4 {[%clk 0:01:04]}  Nb6 {[%clk 0:01:55]} 21. b5 {[%clk 0:00:31]}  axb5 {[%clk 0:01:54]} 22. Nxb5 {[%clk 0:00:32]}  Na4 {[%clk 0:01:37]} 23. Na7 {[%clk 0:00:17]}  Rxc1+ {[%clk 0:01:31]} 24. Rxc1 {[%clk 0:00:13]}  Rxc1+ {[%clk 0:01:29]} 25. Bxc1 {[%clk 0:00:14]}  Bxa3 {[%clk 0:01:19]} 26. Qc8+ {[%clk 0:00:13]}  Kg7 {[%clk 0:01:19]} 27. Bxa3 {[%clk 0:00:08]}  Qxa3 {[%clk 0:01:17]} 28. Nb5 {[%clk 0:00:06]}  Qa2 {[%clk 0:00:47]} 29. Bf1 {[%clk 0:00:01]}  Nb2 {[%clk 0:00:45]} 0-1


[Site "https://www.chess.com"]

[Event "Titled Tuesday Blitz March 21 Early 2023"]
[White "Avazkhonov, Alikhon"]
[Black "Liyanage, Ranindu Dilshan"]
[WhiteFideId "14208504"]
[BlackFideId "9915834"]
[WhiteElo "1739"]
[BlackElo "2199"]
[Result "1-0"]
[Round "01"]
[TimeControl "180+2"]
[Date "2023.03.21"]
[WhiteClock "0:00:06"]
[BlackClock "0:00:12"]

1. d4 {[%clk 0:03:00]}  Nf6 {[%clk 0:02:59]} 2. c4 {[%clk 0:03:01]}  e6 {[%clk 0:03:00]} 3. Nc3 {[%clk 0:03:01]}  Bb4 {[%clk 0:03:00]} 4. e3 {[%clk 0:02:59]}  O-O {[%clk 0:03:00]} 5. Bd2 {[%clk 0:03:00]}  c5 {[%clk 0:02:57]} 6. a3 {[%clk 0:02:59]}  Bxc3 {[%clk 0:02:55]} 7. Bxc3 {[%clk 0:03:00]}  Ne4 {[%clk 0:02:55]} 8. Ne2 {[%clk 0:03:01]}  b6 {[%clk 0:02:54]} 9. d5 {[%clk 0:03:00]}  d6 {[%clk 0:02:48]} 10. f3 {[%clk 0:02:59]}  Nxc3 {[%clk 0:02:48]} 11. Nxc3 {[%clk 0:03:00]}  e5 {[%clk 0:02:49]} 12. Qd2 {[%clk 0:02:43]}  f5 {[%clk 0:02:45]} 13. Bd3 {[%clk 0:02:42]}  Nd7 {[%clk 0:02:42]} 14. O-O {[%clk 0:02:43]}  Nf6 {[%clk 0:02:40]} 15. f4 {[%clk 0:02:43]}  Re8 {[%clk 0:02:37]} 16. Rae1 {[%clk 0:02:41]}  e4 {[%clk 0:02:31]} 17. Be2 {[%clk 0:02:28]}  Bd7 {[%clk 0:02:32]} 18. Rb1 {[%clk 0:02:21]}  Qc7 {[%clk 0:02:30]} 19. h3 {[%clk 0:02:19]}  a6 {[%clk 0:02:30]} 20. Rfc1 {[%clk 0:02:19]}  h6 {[%clk 0:02:28]} 21. b4 {[%clk 0:02:19]}  g5 {[%clk 0:02:28]} 22. g3 {[%clk 0:02:14]}  Kh7 {[%clk 0:02:25]} 23. Kh2 {[%clk 0:02:11]}  Qd8 {[%clk 0:02:16]} 24. Qb2 {[%clk 0:02:09]}  gxf4 {[%clk 0:02:12]} 25. gxf4 {[%clk 0:01:56]}  Rg8 {[%clk 0:02:03]} 26. Rg1 {[%clk 0:01:56]}  Qe7 {[%clk 0:01:56]} 27. bxc5 {[%clk 0:01:39]}  bxc5 {[%clk 0:01:57]} 28. Qb6 {[%clk 0:01:33]}  Raf8 {[%clk 0:01:51]} 29. Qa7 {[%clk 0:00:54]}  h5 {[%clk 0:01:31]} 30. Rg5 {[%clk 0:00:43]}  Rxg5 {[%clk 0:01:21]} 31. fxg5 {[%clk 0:00:44]}  Ne8 {[%clk 0:01:18]} 32. Rb7 {[%clk 0:00:45]}  Rf7 {[%clk 0:01:18]} 33. Bxh5 {[%clk 0:00:37]}  Rg7 {[%clk 0:01:18]} 34. h4 {[%clk 0:00:30]}  Qe5+ {[%clk 0:01:10]} 35. Kg2 {[%clk 0:00:28]}  Nf6 {[%clk 0:01:04]} 36. Ne2 {[%clk 0:00:20]}  Qe7 {[%clk 0:00:27]} 37. Nf4 {[%clk 0:00:14]}  Ne8 {[%clk 0:00:17]} 38. Kf2 {[%clk 0:00:09]}  Qd8 {[%clk 0:00:13]} 39. Bxe8 {[%clk 0:00:09]}  Qxe8 {[%clk 0:00:13]} 40. Ne6 {[%clk 0:00:07]}  Re7 {[%clk 0:00:14]} 41. Rxd7 {[%clk 0:00:05]}  Rxd7 {[%clk 0:00:12]} 42. Qxd7+ {[%clk 0:00:06]} 1-0


[Site "https://www.chess.com"]

[Event "Titled Tuesday Blitz March 21 Early 2023"]
[White "Csonka, Balazs"]
[Black "Bochnicka, Vladimir"]
[WhiteFideId "742910"]
[BlackFideId "14943450"]
[WhiteElo "2404"]
[BlackElo "2094"]
[Result "1-0"]
[Round "01"]
[TimeControl "180+2"]
[Date "2023.03.21"]
[WhiteClock "0:01:02"]
[BlackClock "0:00:59"]

1. d4 {[%clk 0:03:00]}  Nf6 {[%clk 0:02:57]} 2. c4 {[%clk 0:02:59]}  g6 {[%clk 0:02:57]} 3. Nc3 {[%clk 0:02:58]}  Bg7 {[%clk 0:02:56]} 4. e4 {[%clk 0:02:58]}  d6 {[%clk 0:02:57]} 5. Be2 {[%clk 0:02:57]}  O-O {[%clk 0:02:56]} 6. Nf3 {[%clk 0:02:57]}  e5 {[%clk 0:02:54]} 7. d5 {[%clk 0:02:57]}  a5 {[%clk 0:02:52]} 8. Bg5 {[%clk 0:02:54]}  Na6 {[%clk 0:02:51]} 9. Nd2 {[%clk 0:02:54]}  h6 {[%clk 0:02:47]} 10. Be3 {[%clk 0:02:51]}  c6 {[%clk 0:02:42]} 11. O-O {[%clk 0:02:47]}  Ne8 {[%clk 0:02:33]} 12. a3 {[%clk 0:02:25]}  c5 {[%clk 0:02:26]} 13. g4 {[%clk 0:01:49]}  f5 {[%clk 0:02:16]} 14. gxf5 {[%clk 0:01:50]}  gxf5 {[%clk 0:02:16]} 15. exf5 {[%clk 0:01:50]}  Bxf5 {[%clk 0:02:16]} 16. Kh1 {[%clk 0:01:51]}  Kh8 {[%clk 0:02:16]} 17. Rg1 {[%clk 0:01:33]}  Nf6 {[%clk 0:01:49]} 18. Rg3 {[%clk 0:01:27]}  Nc7 {[%clk 0:01:33]} 19. Qg1 {[%clk 0:01:25]}  Rf7 {[%clk 0:01:27]} 20. Qg2 {[%clk 0:01:24]}  Qe7 {[%clk 0:01:17]} 21. Rg1 {[%clk 0:01:24]}  Rg8 {[%clk 0:01:17]} 22. Nde4 {[%clk 0:01:18]}  Qf8 {[%clk 0:01:13]} 23. Nxf6 {[%clk 0:01:08]}  Rxf6 {[%clk 0:01:14]} 24. Ne4 {[%clk 0:01:07]}  Bxe4 {[%clk 0:00:58]} 25. Qxe4 {[%clk 0:01:08]}  Ne8 {[%clk 0:00:59]} 26. Bd3 {[%clk 0:01:02]} 1-0


[Site "https://www.chess.com"]